Workbook

Sheet Instructivo
A1: CRITERIO DE PRIORIZACIÓN DE TRÁMITES ADMINISTRATIVOS
A2: Instructivo
A3: Consideraciones generales
A5: En las hojas “COSTO DE ADMINISTRACIÓN PÚBLICA”y “RESUMEN” para añadir más trámites y que apliquen las fórmulas, se deberá seleccionar la primera fila y copiarla una por cada trámite de la entidad
A7: Todas las hojas tienen columnas de color celeste, en las cuales NO deben ingresar valores ya que contienen fórmulas.
A8: Para la carga en GOB.EC. La institución debe recordar que el peso máximo del archivo es de 2 MB.
A9: Esquema de puntuación
A10: Para priorizar un trámite, se realizará un análisis de criterios básicos y adicionales basado en información que disponen las instituciones sujetas a esta norma técnica. Cada criterio será puntuado según los lineamientos presentes en esta norma.
A11: a) Demanda Anual
A12: Considerará el volumen o frecuencia de las solicitudes que ingresan al año a cada institución para la gestión de un trámite en particular.
A13: La identificación del volumen anual de los trámites se realizará a través de sus registros de transacciones y/o el número de visitas de consulta de información realizadas a través de páginas web institucionales.
A14: Para realizar el registro realice lo siguiente:
A15: 1.- Seleccione la hoja DEMANDA ANUAL
A16: 2.- Ingrese los trámites de la institución registrando el identificador y nombre en las columnas respectivas.
A17: 3.- Para cada trámite debe especificar en la columna DEMANDA ANUAL el volumen o frecuencia anual, de acuerdo a lo mencionado anteriormente.
A18: 4.- Una vez terminado el llenado solicitado presione el botón PUNTUACIÓN, se ordenara de menor a mayor.
A19: 5.- Usted visualizará el ordenamiento de los trámites ingresados de acuerdo al número de volumen o frecuencia anual.
A20: 6.- Así mismo, usted visualizará el puntaje obtenido en la columna PUNTUACIÓN de acuerdo al grupo obtenido por cada trámite de acuerdo al número de volumen o frecuencia anual cosiderando lo siguiente: ** Primer grupo (trámites con menor demanda no incluye los trámites con demanda 0 ) = 3 ** Segundo grupo (trámites con demanda intermedia) = 6 ** Tercer grupo (trámites con mayor demanda) = 10
A21: Cada vez que requiera actualizar el puntaje presionando el botón puntuación, debe verificar que la celda de la columna puntaje se encuentren vacías, es decir, se debe borrar cualquier valor de puntaje obtenido previamente.
A22: b) Volumen de quejas asociadas a un trámite:
A23: Considerará la cantidad de quejas recibidas en relación a un trámite durante un año. Estas quejas deberán estar documentadas en medios físicos y/o digitales.
A24: Para determinar la puntuación, se colocará en una tabla todos los trámites con sus correspondientes quejas ordenándose de menor a mayor. Se dividirá en 2 partes en los que cada grupo contenga la misma cantidad de trámites.
A25: Para realizar el registro realice lo siguiente:
A26: 1.- Seleccione la hoja VOLUMEN DE QUEJAS
A27: 2.- Ingrese los trámites de la institución registrando el identificador y nombre en las columnas respectivas. Si usted requiere de acuerdo al número de trámites copie filas adicionales que estén dentro del cuadro
A28: 3.- Para cada trámite debe especificar en la columna VOLUMEN QUEJAS el número de quejas anual, de acuerdo a lo mencionado anteriormente.
A29: 4.- Una vez terminado el llenado solicitado presione el botón PUNTUACIÓN.
A30: 5.- Usted visualizará el ordenamiento de los trámites ingresados de acuerdo al número de volumen o frecuencia anual.
A31: 6.- Así mismo, usted visualizará el puntaje obtenido en la columna PUNTUACIÓN de acuerdo al grupo obtenido por cada trámite de acuerdo al número de volumen o frecuencia anual cosiderando lo siguiente: La puntuación se basará en los siguientes grupos: ** Primer grupo (trámites con menor cantidad de quejas, no incluye los trámites con queja 0 ) = 4 ** Segundo grupo (trámites con mayor porcentaje de quejas) = 10
A32: El valor del volumen de quejas no debe ser superior al valor del volumen de la demana, no le permitirá registrar un valor.
A33: c) Costo para la administración pública:
A34: En cada trámite, basado en un caso estándar, se deberá estimar el costo incurrido en el costo de personal y recursos necesarios para su atención desde que el administrado entregó todos los requisitos hasta que la institución entregue el producto, respuesta o servicio requerido en el trámite. Se considerará:
A35: • Costo de personal:
A36: Costo del personal para atender el trámite, se excluyen actividades realizadas automáticamente o que dependen del administrado. El tiempo deberá considerar únicamente el tiempo efectivo de trabajo del personal, no debe considerar el tiempo de espera o de movimiento.
A37: • Costo de recursos:
A38: Se deberá considerar el costo directo en el que la institución debe incurrir para atender un trámite. Se debe considerar los insumos o materia prima necesaria u cualquier otro que la institución considere pertinente.
A39: Para realizar el registro realice lo siguiente:
A40: 1.- Seleccione la hoja COSTO ADMINISTRACIÓN PÚBLICA
A41: 2.- Ingrese los trámites de la institución registrando el identificador y nombre en las columnas respectivas. Si usted requiere de acuerdo al número de trámites copie filas adicionales que estén dentro del cuadro
A42: 3.- Para calcular el tiempo de las actividades, utilizar la hoja AUXILIAR COSTO ADMINISTRACIÓN donde deberá listar todas las actividades que realiza la institución en un caso estándar y asignar el tiempo mínimo que toma cada actvidad (en horas). El tiempo total de las actividades, deberá ingresar en la correspondiente celda de la hoja COSTO ADMINISTRACIÓN PÚBLICA
A43: 4.- En función de la información registrada en el paso 3, la matriz entregará el costo del personal
A44: 5.- Completar la columna "Costo recursos", en la cual ingresará el costo directo en el que incurre la institución para entregar el trámite. En este valor se considerarán los valores correspondientes a insumos y/o materia prima mínimos que se invierten por cada trámite (no se considera mano de obra)
A45: 6.- La columna "Costo para la adm. pública" mostrará el costto de este criterio para cada trámite
A46: 7,- Para que la fórmula funcione debe arrastrar hacia abajo al último de los támites ingresados, no copiar
A47: 7.- Una vez que disponga del Costo para la administración pública, presionar el botón "GENERAR".
A48: 8. Visualizar la hoja “RESUMEN DE COSTO AP” en la que va a encontrar copiada las celdas necesarias para el ordenamiento y puntuación de las mismas al presionar el botón “PUNTUACIÓN”
A50: d) Tiempo de respuesta:
A51: Considerará los tiempos que a las instituciones les toma dar respuesta a un trámite desde que reciben la solicitud del administrado hasta la finalización del mismo. Para la definición del tiempo se considerará un caso estándar.
A52: Para determinar la puntuación, se colocará en una tabla todos los trámites con el tiempo de respuesta, ordenándose de menor a mayor. Se dividirá en 4 grupos, en los que cada uno contenga la misma cantidad de trámites.
A53: Para realizar el registro realice lo siguiente:
A54: 1.- Seleccione la hoja TIEMPO DE RESPUESTA
A55: 2.- Ingrese los trámites de la institución registrando el identificador y nombre en las columnas respectivas. Si usted requiere de acuerdo al número de trámites copie filas adicionales que estén dentro del cuadro
A56: 3.- Para cada trámite debe especificar en la columna TIEMPO RESPUESTA el tiempo, de acuerdo a lo mencionado anteriormente.
A57: 4.- Una vez terminado el llenado solicitado presione el botón PUNTUACIÓN.
A58: 5.- Usted visualizará el ordenamiento de los trámites ingresados de acuerdo al número de volumen o frecuencia anual.
A59: 6.- Así mismo, usted visualizará el puntaje obtenido en la columna PUNTUACIÓN de acuerdo al grupo obtenido por cada trámite de acuerdo al número de volumen o frecuencia anual cosiderando lo siguiente: La puntuación considera lo siguiente: ** Primer grupo (menor o igual a 40 horas laboralres) = 0 ** Segundo grupo mayor 40 horas laboralres) = 30
A60: e) Canal de atención:
A61: Considerará los canales de atención a través de los cuales el administrado puede iniciar el trámite.
A62: Para realizar el registro realice lo siguiente:
A63: 1.- Seleccione la hoja CANAL ATENCIÓN
A64: 2.- Ingrese los trámites de la institución registrando el identificador y nombre en las columnas respectivas. Si usted requiere de acuerdo al número de trámites copie filas adicionales que estén dentro del cuadro
A65: 3.- Para cada trámite debe seleccionar el canal de atención del trámite en la columna CANAL ATENCIÓN, que pueden ser: El trámite se puede completar totalmente en línea: Se considera trámite totalmente en línea cuando el administrado no requiere realizar ninguna interacción presencial con la institución = 0 El trámite no se puede completar totalmente en línea: Se considera este caso, cuando el trámite incluye al menos una actividad, incluido mecanismos de pago, en la que el administrado deba acudir presencialmente a la institución, para la realización de dicho trámite. Los trámites presenciales se consideran dentro de esta categoría = 10
A66: 4.- De acuerdo a la selección usted obtendrá la puntuación del trámite que se visualizará en la columna PUNTUACIÓN.
A68: f) Resumen
A69: En esta hoja deberá consolidar todas las puntuaciones obtenidas para cada trámite en los criterios a) hasta e). Adicionalmente deberá analizar los criterios adicionales que dispone la norma técnica, para estos últimos solamente deberá seleccionar en la celda correspondiente y la matriz asignará la puntuación adicional. Los criterios que deberá considerar son: - NECESIDADES CIUDADANAS: Si la institución ha implementado mecanismos para identificar necesidades ciudadanas respecto al trámite, seleccionar "SI", caso contrario, seleccionar "NO" - SUSCEPTIBILIDAD A CORRUPCIÓN: Si la institución dispone de información documentada sobre presuntos actos de corrupción, seleccionar "SI", caso contrario, seleccionar "NO" - VOLUMEN DE DEVOLUCIONES: Si la institución posee documentación sobre devoluciones del trámite en una cantidad significativa, seleccionar "SI", caso contrario, seleccionar "NO" Para que funcione la lista depelgable debe arrastrar la lista y la puntuación hacia abajo al último de los támites ingresados, no copiar
A70: En la columna puntaje total se realizará la sumatoria de los valores de los criterios básicos y adicionales. Este valor deberá registrarse en la plataforma GOB.EC

Sheet DEMANDA ANUAL
A1: PRIORIZACIÓN DE TRÁMITES ADMINISTRATIVOS
A2: DEMANDA ANUAL
A4: IDENTIFICADOR | B4: TRÁMITE | C4: DEMANDA ANUAL | D4: PUNTAJE
A5: SINFO-CONADIS | B5: Atención de solicitudes de acceso a la información pública | C5: 1 | D5: 3
A6: CONADIS-005 | B6: Atención de la solicitud de identificación vehicular para el uso y traslado de las personas con discapacidad | C6: 900 | D6: 3
A7: CONADIS-001 | B7: Asesoría técnica especializada para incorporar el enfoque y el principio de igualdad y no discriminación en el ámbito de discapacidades | C7: 1391 | D7: 6
A8: CONADIS-002 | B8: Asesoría y seguimiento a casos de amenaza y/o violación de derechos y medidas de acción afirmativa | C8: 3167 | D8: 6
A9: CONADIS-006 | B9: Atención a solicitudes de Información en el ámbito de discapacidades | C9: 10333 | D9: 10
A10: CONADIS-003 | B10: Difusión, promoción, socialización y sensibilización de derechos con enfoque de igualdad y no discriminación en el ámbito de discapacidades | C10: 253364 | D10: 10

Sheet VOLUMEN DE QUEJAS
A1: PRIORIZACIÓN DE TRÁMITES ADMINISTRATIVOS
A2: VOLUMEN DE QUEJAS
A4: IDENTIFICADOR | B4: TRÁMITE | C4: VOLUMEN DEMANDA | D4: VOLUMEN DE QUEJAS | E4: PORCENTAJE | F4: PUNTUACIÓN
A5: SINFO-CONADIS | B5: Atención de solicitudes de acceso a la información pública | C5: 1 | D5: 0 | E5: 0 | F5: 0
A6: CONADIS-005 | B6: Atención de la solicitud de identificación vehicular para el uso y traslado de las personas con discapacidad | C6: 900 | D6: 0 | E6: 0 | F6: 0
A7: CONADIS-001 | B7: Asesoría técnica especializada para incorporar el enfoque y el principio de igualdad y no discriminación en el ámbito de discapacidades | C7: 1391 | D7: 0 | E7: 0 | F7: 0
A8: CONADIS-002 | B8: Asesoría y seguimiento a casos de amenaza y/o violación de derechos y medidas de acción afirmativa | C8: 3167 | D8: 0 | E8: 0 | F8: 0
A9: CONADIS-006 | B9: Atención a solicitudes de Información en el ámbito de discapacidades | C9: 10333 | D9: 0 | E9: 0 | F9: 0
A10: CONADIS-003 | B10: Difusión, promoción, socialización y sensibilización de derechos con enfoque de igualdad y no discriminación en el ámbito de discapacidades | C10: 253364 | D10: 0 | E10: 0 | F10: 0

Sheet COSTO ADMINISTRACIÓN PÚBLICA
A1: PRIORIZACIÓN DE TRÁMITES ADMINISTRATIVOS
A2: COSTOS PARA LA ADMINISTRACIÓN PÚBLICA
A4: IDENTIFICADOR | B4: TRÁMITE | C4: INSUMOS PARA COSTO | F4: COSTO PARA LA ADM. PÚBLICA | H4: SBU | I4: 400
C5: TIEMPO (HORAS) | D5: COSTO PERSONAL | E5: COSTO RECURSOS
A6: SINFO-CONADIS | B6: Atención de solicitudes de acceso a la información pública | C6: =+'AUXILIAR COSTO ADMINISTRACIÓN'!D89 -> 4.683333333 | D6: =C6*$I$4/160 -> 11.70833333 | E6: =+'AUXILIAR COSTO ADMINISTRACIÓN'!G89 -> 5.721354545 | F6: =D6+E6 -> 17.42968788
A7: CONADIS-005 | B7: Atención de la solicitud de identificación vehicular para el uso y traslado de las personas con discapacidad | C7: =+'AUXILIAR COSTO ADMINISTRACIÓN'!D111 -> 4.1 | D7: =C7*$I$4/160 -> 10.25 | E7: =+'AUXILIAR COSTO ADMINISTRACIÓN'!G111 -> 6.415321345 | F7: =D7+E7 -> 16.66532135
A8: CONADIS-001 | B8: Asesoría técnica especializada para incorporar el enfoque y el principio de igualdad y no discriminación en el ámbito de discapacidades | C8: =+'AUXILIAR COSTO ADMINISTRACIÓN'!D20 -> 8.433333333 | D8: 21.08333333 | E8: =+'AUXILIAR COSTO ADMINISTRACIÓN'!G20 -> 2.498112545 | F8: 23.58144588
A9: CONADIS-002 | B9: Asesoría y seguimiento a casos de amenaza y/o violación de derechos y medidas de acción afirmativa | C9: =+'AUXILIAR COSTO ADMINISTRACIÓN'!D40 -> 16.26666667 | D9: 40.66666667 | E9: =+'AUXILIAR COSTO ADMINISTRACIÓN'!G40 -> 2.498112545 | F9: 43.16477921
A10: CONADIS-006 | B10: Atención a solicitudes de Información en el ámbito de discapacidades | C10: =+'AUXILIAR COSTO ADMINISTRACIÓN'!D127 -> 0.1 | D10: =C10*$I$4/160 -> 0.25 | E10: =+'AUXILIAR COSTO ADMINISTRACIÓN'!G127 -> 2.472066145 | F10: 2.722066145
A11: CONADIS-003 | B11: Difusión, promoción, socialización y sensibilización de derechos con enfoque de igualdad y no discriminación en el ámbito de discapacidades | C11: =+'AUXILIAR COSTO ADMINISTRACIÓN'!D68 -> 3.683333333 | D11: 9.208333333 | E11: =+'AUXILIAR COSTO ADMINISTRACIÓN'!G66 -> 2.491600945 | F11: 11.69993428

Sheet RESUMEN DE COSTOS AP
A1: PRIORIZACIÓN DE TRÁMITES ADMINISTRATIVOS
A2: COSTOS PARA LA ADMINISTRACIÓN PÚBLICA
A4: IDENTIFICADOR | B4: TRÁMITE | C4: COSTO PARA LA ADM. PÚBLICA | D4: PUNTUACIÓN
A5: CONADIS-006 | B5: Atención a solicitudes de Información en el ámbito de discapacidades | C5: 2.722066145 | D5: 5
A6: CONADIS-003 | B6: Difusión, promoción, socialización y sensibilización de derechos con enfoque de igualdad y no discriminación en el ámbito de discapacidades | C6: 11.69993428 | D6: 5
A7: CONADIS-005 | B7: Atención de la solicitud de identificación vehicular para el uso y traslado de las personas con discapacidad | C7: 16.66532135 | D7: 10
A8: SINFO-CONADIS | B8: Atención de solicitudes de acceso a la información pública | C8: 17.42968788 | D8: 10
A9: CONADIS-001 | B9: Asesoría técnica especializada para incorporar el enfoque y el principio de igualdad y no discriminación en el ámbito de discapacidades | C9: 23.58144588 | D9: 20
A10: CONADIS-002 | B10: Asesoría y seguimiento a casos de amenaza y/o violación de derechos y medidas de acción afirmativa | C10: 43.16477921 | D10: 20

Sheet AUXILIAR COSTO ADMINISTRACIÓN
A2: TRÁMITE: | C2: Asesoría técnica especializada para incorporar el enfoque y el principio de igualdad y no discriminación en el ámbito de discapacidades | F2: En promedio se toma que se utiliza 5 hojas para impresión, la resma de papel que adquiere el CONADIS por catálogo electrónico esta en $3,2558 (Información proporcionada por la Analista Administrativa y verificada en el portal de compras públicas)
A3: NO. | B3: RESPONSABLE | C3: ACTIVIDAD | D3: TIEMPO (HORAS) | F3: RECURSOS | G3: COSTO RECURSOS
A4: 1 | B4: Técnico Territorial | C4: Brindar información de requisitos | D4: =6/60 -> 0.1 | F4: Material de impresión | G4: =(3.2558/500)*5 -> 0.032558
A5: 2 | B5: Técnico de Documentación | C5: Receptar solicitud e ingresar solicitud vía QUIPUX | D5: =10/60 -> 0.1666666667 | F5: Internet | G5: =(1657.6/50)/22 -> 1.506909091
A6: 3 | B6: Máxima Autoridad del Consejo | C6: Revisar solicitud y disponer atender la solicitud de asesoría técnica | D6: =5/60 -> 0.08333333333 | F6: Energía eléctrica | G6: =(872.5/50)/22 -> 0.7931818182
A7: 4 | B7: Coordinador/a Técnico/a | C7: Verificar disposición y designar al área que atenderá la solicitud | D7: =5/60 -> 0.08333333333 | F7: Telefonía fija | G7: =(182.01/50)/22 -> 0.1654636364
A8: 5 | B8: Responsable de Observancia, Seguimiento y Evaluación | C8: Verificar y designar al equipo que brindará la asesoría técnica | D8: =5/60 -> 0.08333333333
A9: 6 | B9: Analista de Observancia, Seguimiento y Evaluación | C9: Brindar la asesoría técnica y realizar informe de ser necesario | D9: 7
A10: 7 | B10: Analista de Observancia, Seguimiento y Evaluación | C10: Elaborar oficio borrador de la asesoría técnica brindada | D10: =25/60 -> 0.4166666667
A11: 8 | B11: Responsable de Observancia, Seguimiento y Evaluación | C11: Revisar la respuesta del oficio y reasignar a la Coordinación Técnica | D11: =10/60 -> 0.1666666667
A12: 9 | B12: Coordinador/a Técnico/a | C12: Revisar la respuesta del oficio y reasignar a la máxima autoridad del Consejo para el envío correspondiente | D12: =10/60 -> 0.1666666667
A13: 10 | B13: Máxima Autoridad del Consejo | C13: Revisar la respuesta y enviar oficio vía Sistema de Gestión Documental - Quipux al usuario | D13: =10/60 -> 0.1666666667
A14: 11
A15: 12
A16: 13
A17: 14
A18: 15
C20: SUMATORIA ACTIVIDADES | D20: =SUM(D4:D19) -> 8.433333333 | G20: =SUM(G4:G19) -> 2.498112545
A24: TRÁMITE: | C24: Asesoría y seguimiento a casos de amenaza y/o violación de derechos y medidas de acción afirmativa
A25: NO. | B25: RESPONSABLE | C25: ACTIVIDAD | D25: TIEMPO (HORAS)
A26: 1 | B26: Técnico Territorial | C26: Brindar información de requisitos | D26: =6/60 -> 0.1 | F26: En promedio se toma que se utiliza 5 hojas para impresión
A27: 2 | B27: Técnico de Documentación | C27: Receptar solicitud e ingresar solicitud vía QUIPUX | D27: =10/60 -> 0.1666666667 | F27: RECURSOS | G27: COSTO RECURSOS
A28: 3 | B28: Máxima Autoridad del Consejo | C28: Revisar solicitud y disponer atender la solicitud de asesoría a casos de la vulneración de derechos de las personas con discapacidad | D28: =30/60 -> 0.5 | F28: Material de impresión | G28: 0.032558
A29: 4 | B29: Coordinador/a Técnico/a | C29: Solicitar atender al área responsable | D29: =30/60 -> 0.5 | F29: Internet | G29: 1.506909091
A30: 5 | B30: Responsable de Observancia / Responsable de Transversalización | C30: Revisar el requerimiento receptado mediante correo electrónico, llamada telefónica, Sistema de Gestión Documental - Quipux o portal www.gob.ec y reasignar al analista del eje correspondiente | D30: =30/60 -> 0.5 | F30: Energía eléctrica | G30: 0.7931818182
A31: 6 | B31: Analista de la Unidad de Observancia o Analista de Transversalización | C31: Revisar la información y sustentos para la Asesoría y seguimiento a casos de amenaza y/o violación de derechos y medidas de acción afirmativa | D31: 4 | F31: Telefonía fija | G31: 0.1654636364
A32: 7 | B32: Analista de la Unidad de Observancia o Analista de Transversalización | C32: Coordinar con instituciones involucradas en el caso de amenaza y/o violación de derechos y medidas de acción afirmativa | D32: 2
A33: 8 | B33: Analista de la Unidad de Observancia o Analista de Transversalización | C33: Analizar la solicitud de asesoría y seguimiento a casos de amenaza y/o violación de derechos y medidas de acción afirmativa y elaborar criterio técnico | D33: 5
A34: 9 | B34: Analista de la Unidad de Observancia o Analista de Transversalización | C34: Elaborar respuesta o derivación del caso con copia al usuario vía Sistema de Gestión Documental - Quipux o mediante el portal www.gob.ec | D34: 2
A35: 10 | B35: Responsable de Observancia / Responsable de Transversalización | C35: Revisar respuesta o derivación del caso y reasignar a la Coordinación Técnica | D35: =30/60 -> 0.5
A36: 11 | B36: Coordinador/a Técnico/a | C36: Revisar respuesta o derivación del caso y reasignar a la Secretaría Técnica o Presidencia para el envío correspondiente | D36: =30/60 -> 0.5
A37: 12 | B37: Máxima Autoridad del Consejo | C37: Revisar respuesta o derivación del caso y enviar vía Sistema de Gestión Documental - Quipux a la institución correspondiente de la atención con copia al usuario | D37: =30/60 -> 0.5
C40: SUMATORIA ACTIVIDADES | D40: =SUM(D26:D39) -> 16.26666667 | G40: =SUM(G28:G39) -> 2.498112545
A43: TRÁMITE: | C43: Difusión, promoción, socialización y sensibilización de derechos con enfoque de igualdad y no discriminación en el ámbito de discapacidades
A44: NO. | B44: RESPONSABLE | C44: ACTIVIDAD | D44: TIEMPO (HORAS)
A45: 1 | B45: Técnico Territorial / Técnico Nacional / Responsable en alguna reunión | C45: Brindar información al usuario sobre los cursos disponibles | D45: =6/60 -> 0.1 | F45: RECURSOS | G45: COSTO RECURSOS
A46: 2 | B46: Responsable de Formulación / Analista de Formulación Información y Estudios / Asistente de Archivo | C46: Revisar el requerimiento mediante correo electrónico, llamada telefónica, mediante el Sistema de Gestión Documental - Quipux o la inscripción individual en la Plataforma del CONADIS | D46: =15/60 -> 0.25 | F46: Material de impresión | G46: =(3.2558/500)*4 -> 0.0260464
A47: 3 | B47: Máxima Autoridad | C47: Disponer atender la solicitud de sensibilización (Aplica cuando la solicitud ingresa por oficio) | D47: =10/60 -> 0.1666666667 | F47: Internet | G47: =(1657.6/50)/22 -> 1.506909091
A48: 4 | B48: Coordinación Técnica | C48: Solicitar gestionar el curso en la plataforma (Aplica cuando la solicitud ingresa por oficio) | D48: =10/60 -> 0.1666666667 | F48: Energía eléctrica | G48: =(872.5/50)/22 -> 0.7931818182
A49: 5 | B49: Responsable de Formulación | C49: Revisar requerimiento y designar al servidor que atenderá la solicitud (Aplica para grupo de personas) | D49: =10/60 -> 0.1666666667 | F49: Telefonía fija | G49: =(182.01/50)/22 -> 0.1654636364
A50: 6 | B50: Analista de Formulación Información y Estudios | C50: Solicitar información para matricula del curso (Aplica para grupo de personas) | D50: =10/60 -> 0.1666666667
A51: 7 | B51: Analista de Formulación Información y Estudios | C51: Informar las fechas de inicio del curso (Aplica para grupo de personas) | D51: =15/60 -> 0.25
A52: 8 | B52: Analista de Formulación Información y Estudios | C52: Validar datos de los usuarios | D52: =5/60 -> 0.08333333333
A53: 9 | B53: Analista de Formulación Información y Estudios | C53: Matricular al usuario en el curso solicitado | D53: =5/60 -> 0.08333333333
A54: 10 | B54: Analista de Formulación Información y Estudios | C54: Realizar informe de los estudiantes matriculado y remitir al usuario (Aplica para grupo de personas) | D54: =10/60 -> 0.1666666667
A55: 11 | B55: Analista de Formulación Información y Estudios | C55: Enviar correo de bienvenida al curso | D55: =10/60 -> 0.1666666667
A56: 12 | B56: Analista de Formulación Información y Estudios / Unidad de Tics | C56: Atender requerimientos del usuario mediante correo electrónico, presencial o llamada telefónica de los cursos | D56: =5/60 -> 0.08333333333
A57: 13 | B57: Analista de Formulación Información y Estudios | C57: Elaborar reporte parcial del curso | D57: =15/60 -> 0.25
A58: 14 | B58: Analista de Formulación Información y Estudios | C58: Enviar correo de recordatorio durante el tiempo que está habilitado el curso | D58: =10/60 -> 0.1666666667
A59: 15 | B59: Analista de Formulación Información y Estudios | C59: Emitir el certificado a los usuarios aprobados que no lo hayan generado en la Plataforma | D59: =15/60 -> 0.25
A60: 16 | B60: Analista de Formulación Información y Estudios | C60: Realizar informe final de participación del curso y remitir al usuario (Aplica para grupo de personas) | D60: =20/60 -> 0.3333333333
A61: 17 | B61: Analista de Formulación Información y Estudios | C61: Elaborar reporte final del curso | D61: =15/60 -> 0.25
A62: 18 | B62: Analista de Formulación Información y Estudios | C62: Subir todos los reportes a la base de datos de la plataforma | D62: =15/60 -> 0.25
A63: 19 | B63: Analista de Formulación Información y Estudios | C63: Remitir mensualmente los reportes de la base de datos de los cursos a la Unidad de Observancia, Seguimiento y Evaluación | D63: =10/60 -> 0.1666666667
A64: 20 | B64: Analista de Formulación Información y Estudios | C64: Consolidar los reportes de evaluaciones del usuario y remitir mensualmente a la Unidad de Planificación y Gestión Estratégica | D64: =10/60 -> 0.1666666667
G66: =SUM(G46:G65) -> 2.491600945
C68: SUMATORIA ACTIVIDADES | D68: =SUM(D45:D67) -> 3.683333333
A71: TRÁMITE: | B71: SINFO-CONADIS | C71: Atención de solicitudes de acceso a la información pública
A72: NO. | B72: RESPONSABLE | C72: ACTIVIDAD | D72: TIEMPO (HORAS) | F72: En promedio se toma que se utiliza 15 hojas para impresión
A73: 1 | B73: Técnico Territorial | C73: Brindar información de requisitos | D73: =6/60 -> 0.1 | F73: RECURSOS | G73: COSTO RECURSOS
A74: 2 | B74: Técnico de Documentación | C74: Receptar solicitud e ingresar solicitud vía QUIPUX | D74: =10/60 -> 0.1666666667 | F74: Material de impresión | G74: =(3.2558/500)*500 -> 3.2558
A75: 3 | B75: Máxima Autoridad del Consejo | C75: Revisar solicitud y disponer al área que genera o custodia la información dar respuesta | D75: =5/60 -> 0.08333333333 | F75: Internet | G75: =(1657.6/50)/22 -> 1.506909091
A76: 4 | B76: Responsables de las Unidades Adjetivas del Consejo | C76: Verificar disposición y designar al servidor que atenderá la solicitud | D76: =10/60 -> 0.1666666667 | F76: Energía eléctrica | G76: =(872.5/50)/22 -> 0.7931818182
A77: 5 | B77: Analista de las Unidades Adjetivas del Consejo | C77: Verificar si la información solicitada existe, caso contrario verificar si es procedente generar la información solicitada | D77: =25/60 -> 0.4166666667 | F77: Telefonía fija | G77: =(182.01/50)/22 -> 0.1654636364
A78: 6 | B78: Analista de las Unidades Adjetivas del Consejo | C78: Si es procedente desarrollar información solicitada o justificar la no pertinencia de la solicitud de información | D78: 3
A79: 7 | B79: Analista de las Unidades Adjetivas del Consejo | C79: Elaborar oficio borrador de respuesta a la solicitud de información o comunicar la no procedencia para desarrollar la información solicitada | D79: =25/60 -> 0.4166666667
A80: 8 | B80: Responsables de las Unidades Adjetivas del Consejo | C80: Revisar la respuesta del oficio y reasignar a la máxima autoridad del Consejo para el envío correspondiente | D80: =10/60 -> 0.1666666667
A81: 9 | B81: Máxima Autoridad del Consejo | C81: Revisar la respuesta y enviar oficio vía Sistema de Gestión Documental - Quipux al usuario | D81: =10/60 -> 0.1666666667
A82: 10
A83: 11
A84: 12
A85: 13
A86: 14
A87: 15
C89: SUMATORIA ACTIVIDADES | D89: =SUM(D73:D88) -> 4.683333333 | G89: =SUM(G74:G88) -> 5.721354545
A93: TRÁMITE: | C93: Atención de la solicitud de identificación vehicular para el uso y traslado de las personas con discapacidad | F93: El valor promedio de envío de un sobre a provincias es de 3,80 (Información proporcionada por la administradora del servicio y verificada en el tarifario establecido)
A94: NO. | B94: RESPONSABLE | C94: ACTIVIDAD | D94: TIEMPO (HORAS) | F94: RECURSOS | G94: COSTO RECURSOS
A95: 1 | B95: Técnico Territorial | C95: Entregar información del proceso para el registro y solicitud del identificativo vehicular | D95: =6/60 -> 0.1 | F95: Servicio de correo de transporte y Fletes | G95: 3.8
A96: 2 | B96: Analista de Tics | C96: Descargar, validar la base de solicitudes y remitir a los Técnicos Territoriales | D96: =5/60 -> 0.08333333333 | F96: Material de impresión | G96: =(3.2558/500)*23 -> 0.1497668
A97: 3 | B97: Técnico Territorial | C97: Revisar, aprobar las solicitudes de identificación vehicular para vehículos de propiedad de personas con discapacidad y remitir al Analista de Tics la base de solicitudes aprobadas | D97: 1 | F97: Internet | G97: =(1657.6/50)/22 -> 1.506909091
A98: 4 | B98: Analista de Tics | C98: Revisar base de solicitudes aprobadas de las provincias, generar base de datos consolidada de las solicitudes aprobadas y remitir al Responsable de Transversalización y Participación | D98: =5/60 -> 0.08333333333 | F98: Energía eléctrica | G98: =(872.5/50)/22 -> 0.7931818182
A99: 5 | B99: Responsable de Transversalización y Participación | C99: Elaborar Oficio temporal para solicitar a la ANT la impresión de los Identificativos Vehiculares | D99: =30/60 -> 0.5 | F99: Telefonía fija | G99: =(182.01/50)/22 -> 0.1654636364
A100: 6 | B100: Coordinador/a Técnico/a | C100: Revisar oficio y reasignar a la máxima autoridad del Consejo para el envío correspondiente | D100: =15/60 -> 0.25
A101: 7 | B101: Máxima Autoridad del Consejo | C101: Revisar oficio y enviar vía Sistema de Gestión Documental - Quipux a la ANT | D101: =15/60 -> 0.25
A102: 8 | B102: Proceso-Agencia Nacional de Transito – ANT | C102: Elaborar y entregar los Identificativos Vehiculares generador por ANT | D102: 0
A103: 9 | B103: Analista de Transversalización y Participación | C103: Receptar, contar y clasificar los identificativos vehiculares por provincias | D103: =5/60 -> 0.08333333333
A104: 10 | B104: Analista de Transversalización y Participación | C104: Elaborar acta y etiquetar los sobres de manila de los identificativos vehiculares por provincias | D104: =15/60 -> 0.25
A105: 11 | B105: Técnico de Documentación | C105: Generar guía de envió de Correos del Ecuador | D105: =30/60 -> 0.5
A106: 12 | B106: Técnico Territorial | C106: Receptar, revisar identificativos y notificar al usuario | D106: =30/60 -> 0.5
A107: 13 | B107: Técnico Territorial | C107: Llenar acta de entrega- compromiso y recabar firma | D107: =15/60 -> 0.25
A108: 14 | B108: Técnico Territorial | C108: Entregar el identificativo vehicular, instructivo y colocar el identificativo vehicular en el vehículo | D108: =15/60 -> 0.25
A109: 15
C111: SUMATORIA ACTIVIDADES | D111: =SUM(D95:D110) -> 4.1 | G111: =SUM(G95:G110) -> 6.415321345
A115: TRÁMITE: | C115: Atención a solicitudes de Información en el ámbito de discapacidades | F115: En promedio se toma que se utiliza 1 hojas para impresión
A116: NO. | B116: RESPONSABLE | C116: ACTIVIDAD | D116: TIEMPO (HORAS) | F116: RECURSOS | G116: COSTO RECURSOS
A117: 1 | B117: Técnico Territorial | C117: Receptar el requerimiento del usuario de forma presencial, llamada telefónica, portal www.gob.ec o correo electrónico | D117: =1/60 -> 0.01666666667 | F117: Material de impresión | G117: =(3.2558/500)*1 -> 0.0065116
A118: 2 | B118: Técnico Territorial | C118: Analizar el tipo de información solicitada | D118: =1/60 -> 0.01666666667 | F118: Internet | G118: =(1657.6/50)/22 -> 1.506909091
A119: 3 | B119: Técnico Territorial | C119: Realizar la búsqueda de información solicitada por el usuario en la normativa legal vigente, páginas web de las instituciones ejecutoras de la política pública en el ámbito de discapacidades e interconsultas con los Técnicos Nacionales responsables de los ejes establecidos en la ANID en caso de ser necesario | D119: =1/60 -> 0.01666666667 | F119: Energía eléctrica | G119: =(872.5/50)/22 -> 0.7931818182
A120: 4 | B120: Técnico Territorial | C120: Brindar la respuesta al usuario por el mismo canal de atención que ingresó la solicitud | D120: =3/60 -> 0.05 | F120: Telefonía fija | G120: =(182.01/50)/22 -> 0.1654636364
A121: 5
A122: 6
A123: 7
A124: 8
A125: 9
C127: SUMATORIA ACTIVIDADES | D127: =SUM(D117:D126) -> 0.1 | G127: =SUM(G117:G126) -> 2.472066145

Sheet TIEMPO DE RESPUESTA
A1: PRIORIZACIÓN DE TRÁMITES ADMINISTRATIVOS
A2: TIEMPO DE RESPUESTA
A4: IDENTIFICADOR | B4: TRÁMITE | C4: TIEMPO RESPUESTA (horas laborables) | D4: PUNTUACIÓN
A5: SINFO-CONADIS | B5: Atención de solicitudes de acceso a la información pública | C5: =8*8 -> 64 | D5: 30
A6: CONADIS-005 | B6: Atención de la solicitud de identificación vehicular para el uso y traslado de las personas con discapacidad | C6: 120 | D6: 30
A7: CONADIS-001 | B7: Asesoría técnica especializada para incorporar el enfoque y el principio de igualdad y no discriminación en el ámbito de discapacidades | C7: 8 | D7: 0
A8: CONADIS-002 | B8: Asesoría y seguimiento a casos de amenaza y/o violación de derechos y medidas de acción afirmativa | C8: 72 | D8: 30
A9: CONADIS-006 | B9: Atención a solicitudes de Información en el ámbito de discapacidades | C9: =6/60 -> 0.1 | D9: 0
A10: CONADIS-003 | B10: Difusión, promoción, socialización y sensibilización de derechos con enfoque de igualdad y no discriminación en el ámbito de discapacidades | C10: 32 | D10: 0

Sheet CANAL ATENCIÓN
A1: PRIORIZACIÓN DE TRÁMITES ADMINISTRATIVOS
A2: CANAL DE ATENCIÓN
I3: Totalmente en Línea | L3: 0
A4: IDENTIFICADOR | B4: TRÁMITE | C4: CANAL ATENCIÓN | D4: PUNTUACIÓN | I4: No se completa totalmente en línea. | L4: 10
A5: SINFO-CONADIS | B5: Atención de solicitudes de acceso a la información pública | C5: Totalmente en Línea | D5: =IF(ISBLANK(C5),"",IF(C5="Totalmente en línea",0,IF(C5="Inicia en línea",6,10))) -> 0
A6: CONADIS-005 | B6: Atención de la solicitud de identificación vehicular para el uso y traslado de las personas con discapacidad | C6: No se completa totalmente en línea. | D6: =IF(ISBLANK(C6),"",IF(C6="Totalmente en línea",0,IF(C6="Inicia en línea",6,10))) -> 10
A7: CONADIS-001 | B7: Asesoría técnica especializada para incorporar el enfoque y el principio de igualdad y no discriminación en el ámbito de discapacidades | C7: Totalmente en Línea | D7: 0
A8: CONADIS-002 | B8: Asesoría y seguimiento a casos de amenaza y/o violación de derechos y medidas de acción afirmativa | C8: Totalmente en Línea | D8: 0
A9: CONADIS-006 | B9: Atención a solicitudes de Información en el ámbito de discapacidades | C9: Totalmente en Línea | D9: 0
A10: CONADIS-003 | B10: Difusión, promoción, socialización y sensibilización de derechos con enfoque de igualdad y no discriminación en el ámbito de discapacidades | C10: Totalmente en Línea | D10: 0

Sheet RESUMEN
C1: BÁSICOS | H1: ADICIONALES
A2: ID trámite | B2: Nombre del trámite | C2: Demanda | D2: Quejas | E2: Costo para administración | F2: Tiempo de respuesta | G2: Canal de atención | H2: Necesidades ciudadanas | J2: Susceptibilidad a corrupción | L2: Volumen de devoluciones | N2: PUNTAJE TOTAL
H3: Criterio | I3: Puntuación | J3: Criterio | K3: Puntuación | L3: Criterio | M3: Puntuación | U3: demanda | V3: 0 | W3: 3 | X3: 6 | Y3: 10
A4: SINFO-CONADIS | B4: Atención de solicitudes de acceso a la información pública | C4: 3 | D4: 0 | E4: 10 | F4: 30 | G4: 0 | H4: NO | I4: =IF(H4="SI",5,0) -> 0 | J4: NO | K4: =IF(J4="SI",10,0) -> 0 | L4: NO | M4: =IF(L4="SI",5,0) -> 0 | N4: =SUM(C4:G4,I4,K4,M4) -> 43 | U4: quejas | V4: 0 | W4: 4 | X4: 10
A5: CONADIS-005 | B5: Atención de la solicitud de identificación vehicular para el uso y traslado de las personas con discapacidad | C5: 3 | D5: 0 | E5: 10 | F5: 30 | G5: 10 | H5: NO | I5: =IF(H5="SI",5,0) -> 0 | J5: NO | K5: =IF(J5="SI",10,0) -> 0 | L5: NO | M5: =IF(L5="SI",5,0) -> 0 | N5: =SUM(C5:G5,I5,K5,M5) -> 53 | U5: cpa | V5: 5 | W5: 10 | X5: 20
A6: CONADIS-001 | B6: Asesoría técnica especializada para incorporar el enfoque y el principio de igualdad y no discriminación en el ámbito de discapacidades | C6: 6 | D6: 0 | E6: 20 | F6: 0 | G6: 0 | H6: NO | I6: 0 | J6: NO | K6: 0 | L6: NO | M6: 0 | N6: 26 | U6: tr | V6: 0 | W6: 30
A7: CONADIS-002 | B7: Asesoría y seguimiento a casos de amenaza y/o violación de derechos y medidas de acción afirmativa | C7: 6 | D7: 0 | E7: 20 | F7: 30 | G7: 0 | H7: NO | I7: 0 | J7: NO | K7: 0 | L7: NO | M7: 0 | N7: 56 | U7: ca | V7: 0 | W7: 10
A8: CONADIS-006 | B8: Atención a solicitudes de Información en el ámbito de discapacidades | C8: 10 | D8: 0 | E8: 5 | F8: 0 | G8: 0 | H8: NO | I8: 0 | J8: NO | K8: 0 | L8: NO | M8: 0 | N8: 15 | V8: SI | W8: NO
A9: CONADIS-003 | B9: Difusión, promoción, socialización y sensibilización de derechos con enfoque de igualdad y no discriminación en el ámbito de discapacidades | C9: 10 | D9: 0 | E9: 5 | F9: 0 | G9: 0 | H9: NO | I9: 0 | J9: NO | K9: 0 | L9: NO | M9: 0 | N9: 15
